[Event "1st Semana Santa Torrevieja 2022"]
[Site "Torrevieja Alicante"]
[Date "2022.04.17"]
[Round "9.16"]
[White "Cruz, Jonathan"]
[Black "Hompanera Lopez, Enrique"]
[Result "1-0"]
[ECO "A06"]
[WhiteElo "2363"]
[BlackElo "2074"]
[Annotator "TA"]
[PlyCount "63"]
[EventDate "2022.04.12"]
[EventType "swiss"]
[EventCountry "ESP"]
[SourceTitle "playchess.com"]
[Source "ChessBase"]
[SourceQuality "1"]
[TimeControl "5400+30"]

{[%evp 18,63,-8,-11,12,0,0,0,0,-11,4,8,45,46,37,42,82,70,141,148,216,231,229,108,95,26,372,354,373,379,375,385,376,379,578,572,440,575,1491,1459,1253,1410,1469,1447,1467,1362,29998,29999]} 1. Nf3 {[%emt 0:00:58]} Nf6 {[%emt 0:00:27]} 2. g3 {[%emt 0:00:27]} d5 {[%emt 0:01:29]} 3. Bg2 {[%emt 0:01:35]} e6 {[%emt 0:02:48]} 4. O-O {[%emt 0:02:49]} Be7 {[%emt 0:00:45]} 5. b3 {[%emt 0:02:12]} c5 {[%emt 0:01:39]} 6. Bb2 {[%emt 0:00:52]} Nc6 {[%emt 0:01:46]} 7. d3 {[%emt 0:06:08]} O-O {[%emt 0:02:09]} 8. Nbd2 {[%emt 0:00:06]} Qc7 {[%emt 0:03:48]} 9. e4 $1 {[%emt 0:03:58] 9.e4 scores better than 9.c4.} dxe4 {[%emt 0:09:52]} 10. dxe4 {[%emt 0:02:53]} Rd8 {[%emt 0:03:04][%cal Of6e4] [#] A06: Réti Opening: 1 Nf3 d5.} 11. e5 $146 {[%emt 0:06:28]} ({Predecessor:} 11. Re1 b6 12. e5 Nd7 13. Qe2 Bb7 14. Nc4 Nf8 15. a4 Rd7 16. h4 h6 17. h5 Rad8 18. Rad1 Rxd1 19. Rxd1 {1-0 (63) Nenezic,M (2495)-Sai Agni,J (2364) Aracaju 2018}) 11... Ne4 {[%emt 0:04:59]} 12. Qe2 {[%emt 0:02:25]} Nxd2 {[%emt 0:00:56] The position is equal.} 13. Nxd2 {[%emt 0:00:06]} Nd4 {[%emt 0:05:27]} 14. Bxd4 {[%emt 0:06:26]} cxd4 {[%emt 0:04:43]} 15. Nf3 {[%emt 0:01:29]} Rd5 {[%emt 0:10:38]} 16. Rad1 {[%emt 0:02:42]} Qd8 {[%emt 0:07:30]} 17. Rd3 {[%emt 0:06:03]} Bc5 {[%emt 0:07:22]} ({Better is} 17... h6 $14) 18. Rfd1 $16 {[%emt 0:01:07][%cal Of3d4]} f6 {[%emt 0:07:21]} (18... Rd7 $16 19. Qe4 a6 20. Nxd4 Qa5) 19. exf6 $18 {[%emt 0:01:58]} Qxf6 {[%emt 0:00:30]} 20. Qe4 {[%emt 0:01:10]} (20. Nd2 $18 {has better winning chances.}) 20... Bd7 $16 {[%emt 0:08:43]} 21. c4 {[%emt 0:15:13] Inhibits Bb5.} (21. Nxd4 $16 {Black must now prevent c4.} Rf8 22. f4) 21... Rd6 $2 {[%emt 0:03:46][%mdl 8192] [#] A mistake that costs the game.} (21... dxc3 $1 $11 22. Rxd5 Bc6) 22. b4 $18 {[%emt 0:00:19]} Bc6 {[%emt 0:00:55]} 23. Qe1 {[%emt 0:00:04]} Bxb4 {[%emt 0:01:26]} 24. Qxb4 {[%emt 0:00:08]} e5 {[%emt 0:00:25]} 25. Nd2 {[%emt 0:00:36]} Rf8 {[%emt 0:03:02]} (25... Rd7 {was necessary.} 26. Bxc6 Qxc6) 26. Bxc6 {[%emt 0:00:46]} Qxf2+ {[%emt 0:00:27]} 27. Kh1 {[%emt 0:00:16]} Qe2 {[%emt 0:05:46]} 28. Bf3 {[%emt 0:01:38]} Qxd3 {[%emt 0:00:24]} 29. Qxd6 {[%emt 0:00:09] Bd5+ would kill now.} Rxf3 {[%emt 0:01:49]} 30. Qd5+ {[%emt 0:00:10]} Rf7 {[%emt 0:00:15] [#]} 31. Rf1 $1 {[%emt 0:00:12]} Qg6 {[%emt 0:00:17]} (31... Qxf1+ 32. Nxf1) 32. Qd8+ {[%emt 0:00:08] Weighted Error Value: White=0.15 (very precise) /Black=0.80} 1-0